Workbook

Sheet Factor Data (hidden)
A1: Entry Count | B1: 5
A2: Next Available ID | B2: 13
A4: ID | B4: 1
A5: IsActive | B5: TRUE
A6: NodeID | B6: 1 | C6: 2 | D6: 3 | E6: 4 | F6: 5
A7: ArcID | B7: 1 | C7: 2 | D7: 3 | E7: 4 | F7: 5 | G7: 6 | H7: 7 | I7: 8
A8: fNodeCopyID | B8: 1 | C8: 2
A9: RootNodeID | B9: 1
A10: FactorName | B10: Sys_Embolism
A11: IsHidden | B11: FALSE
A13: ID | B13: 2
A14: IsActive | B14: TRUE
A15: NodeID | B15: 6 | C15: 7 | D15: 8 | E15: 39
A16: ArcID | B16: 9 | C16: 40 | D16: 41
A17: fNodeCopyID | B17: 3
A18: RootNodeID | B18: 39
A19: FactorName | B19: Anticoag_Status
A20: IsHidden | B20: FALSE
A22: ID | B22: 5
A23: IsActive | B23: TRUE
A24: NodeID | B24: 31 | C24: 32 | D24: 33 | E24: 34 | F24: 35
A25: ArcID | B25: 28 | C25: 29 | D25: 30 | E25: 31 | F25: 32 | G25: 33 | H25: 34 | I25: 35
A26: fNodeCopyID | B26: 4 | C26: 5
A27: RootNodeID | B27: 31
A28: FactorName | B28: Sys_Hemorrhage
A29: IsHidden | B29: FALSE
A31: ID | B31: 6
A32: IsActive | B32: TRUE
A33: NodeID | B33: 36 | C33: 37
A34: ArcID | B34: 36 | C34: 37 | D34: 38
A35: fNodeCopyID | B35: 6
A36: RootNodeID | B36: 36
A37: FactorName | B37: Pul_Embolism
A38: IsHidden | B38: FALSE
A40: ID | B40: 7
A41: IsActive | B41: TRUE
A42: NodeID | B42: 38
A43: ArcID | B43: 39
A44: fNodeCopyID
A45: RootNodeID | B45: 38
A46: FactorName | B46: Background
A47: IsHidden | B47: FALSE

Sheet Node Data (hidden)
A1: Entry Count | B1: 17
A2: Next Available ID | B2: 47
A4: ID | B4: 1
A5: nParentFactorID | B5: 1
A6: NodeCopyID | B6: 1
A7: PredecessorArcID
A8: SuccessorArcID | B8: 1
A9: QualityFactor | B9: 1
A10: CostFactor | B10: 0
A11: IsKeyNode | B11: FALSE
A12: NodeName | B12: No Embolism
A13: Rounded | B13: TRUE
A14: nTriggerID
A16: ID | B16: 2
A17: nParentFactorID | B17: 1
A18: NodeCopyID
A19: PredecessorArcID | B19: 1
A20: SuccessorArcID | B20: 2 | C20: 3
A21: QualityFactor | B21: 1
A22: CostFactor | B22: 0
A23: IsKeyNode | B23: FALSE
A24: NodeName | B24: Embolism
A25: Rounded | B25: TRUE
A26: nTriggerID
A28: ID | B28: 3
A29: nParentFactorID | B29: 1
A30: NodeCopyID
A31: PredecessorArcID | B31: 3
A32: SuccessorArcID | B32: 4 | C32: 5
A33: QualityFactor | B33: 1
A34: CostFactor | B34: 0
A35: IsKeyNode | B35: FALSE
A36: NodeName | B36: Survive
A37: Rounded | B37: TRUE
A38: nTriggerID
A40: ID | B40: 4
A41: nParentFactorID | B41: 1
A42: NodeCopyID | B42: 2
A43: PredecessorArcID | B43: 4
A44: SuccessorArcID | B44: 6
A45: QualityFactor | B45: 1
A46: CostFactor | B46: 0
A47: IsKeyNode | B47: FALSE
A48: NodeName | B48: Long Term Morbidity
A49: Rounded | B49: TRUE
A50: nTriggerID
A52: ID | B52: 5
A53: nParentFactorID | B53: 1
A54: NodeCopyID
A55: PredecessorArcID | B55: 6
A56: SuccessorArcID | B56: 7 | C56: 8
A57: QualityFactor | B57: 1
A58: CostFactor | B58: 0
A59: IsKeyNode | B59: FALSE
A60: NodeName | B60: Subseq Embolism
A61: Rounded | B61: TRUE
A62: nTriggerID
A64: ID | B64: 6
A65: nParentFactorID | B65: 2
A66: NodeCopyID | B66: 3
A67: PredecessorArcID | B67: 40
A68: SuccessorArcID
A69: QualityFactor | B69: 1
A70: CostFactor | B70: 0
A71: IsKeyNode | B71: FALSE
A72: NodeName | B72: Warfarin
A73: Rounded | B73: TRUE
A74: nTriggerID
A76: ID | B76: 7
A77: nParentFactorID | B77: 2
A78: NodeCopyID
A79: PredecessorArcID | B79: 41
A80: SuccessorArcID
A81: QualityFactor | B81: 1
A82: CostFactor | B82: 0
A83: IsKeyNode | B83: FALSE
A84: NodeName | B84: No Warfarin
A85: Rounded | B85: TRUE
A86: nTriggerID
A88: ID | B88: 8
A89: nParentFactorID | B89: 2
A90: NodeCopyID
A91: PredecessorArcID
A92: SuccessorArcID | B92: 9
A93: QualityFactor | B93: 1
A94: CostFactor | B94: 0
A95: IsKeyNode | B95: FALSE
A96: NodeName | B96: Temporarily Discontinue
A97: Rounded | B97: TRUE
A98: nTriggerID
A100: ID | B100: 31
A101: nParentFactorID | B101: 5
A102: NodeCopyID | B102: 4
A103: PredecessorArcID
A104: SuccessorArcID | B104: 28
A105: QualityFactor | B105: 1
A106: CostFactor | B106: 0
A107: IsKeyNode | B107: FALSE
A108: NodeName | B108: No Hemorrhage
A109: Rounded | B109: TRUE
A110: nTriggerID
A112: ID | B112: 32
A113: nParentFactorID | B113: 5
A114: NodeCopyID
A115: PredecessorArcID | B115: 28
A116: SuccessorArcID | B116: 35 | C116: 29
A117: QualityFactor | B117: 1
A118: CostFactor | B118: 0
A119: IsKeyNode | B119: FALSE
A120: NodeName | B120: Hemorrhage
A121: Rounded | B121: TRUE
A122: nTriggerID
A124: ID | B124: 33
A125: nParentFactorID | B125: 5
A126: NodeCopyID
A127: PredecessorArcID | B127: 29
A128: SuccessorArcID | B128: 31 | C128: 30
A129: QualityFactor | B129: 1
A130: CostFactor | B130: 0
A131: IsKeyNode | B131: FALSE
A132: NodeName | B132: Survive
A133: Rounded | B133: TRUE
A134: nTriggerID
A136: ID | B136: 34
A137: nParentFactorID | B137: 5
A138: NodeCopyID | B138: 5
A139: PredecessorArcID | B139: 31
A140: SuccessorArcID | B140: 32
A141: QualityFactor | B141: 1
A142: CostFactor | B142: 0
A143: IsKeyNode | B143: FALSE
A144: NodeName | B144: Long Term Morbidity
A145: Rounded | B145: TRUE
A146: nTriggerID
A148: ID | B148: 35
A149: nParentFactorID | B149: 5
A150: NodeCopyID
A151: PredecessorArcID | B151: 32
A152: SuccessorArcID | B152: 34 | C152: 33
A153: QualityFactor | B153: 1
A154: CostFactor | B154: 0
A155: IsKeyNode | B155: FALSE
A156: NodeName | B156: Subseq Hemorrhage
A157: Rounded | B157: TRUE
A158: nTriggerID
A160: ID | B160: 36
A161: nParentFactorID | B161: 6
A162: NodeCopyID | B162: 6
A163: PredecessorArcID
A164: SuccessorArcID | B164: 36
A165: QualityFactor | B165: 1
A166: CostFactor | B166: 0
A167: IsKeyNode | B167: FALSE
A168: NodeName | B168: No Embolism
A169: Rounded | B169: TRUE
A170: nTriggerID
A172: ID | B172: 37
A173: nParentFactorID | B173: 6
A174: NodeCopyID
A175: PredecessorArcID | B175: 36
A176: SuccessorArcID | B176: 38 | C176: 37
A177: QualityFactor | B177: 1
A178: CostFactor | B178: 0
A179: IsKeyNode | B179: FALSE
A180: NodeName | B180: Embolism
A181: Rounded | B181: TRUE
A182: nTriggerID
A184: ID | B184: 38
A185: nParentFactorID | B185: 7
A186: NodeCopyID
A187: PredecessorArcID
A188: SuccessorArcID | B188: 39
A189: QualityFactor | B189: 1
A190: CostFactor | B190: 0
A191: IsKeyNode | B191: FALSE
A192: NodeName | B192: Alive
A193: Rounded | B193: TRUE
A194: nTriggerID
A196: ID | B196: 39
A197: nParentFactorID | B197: 2
A198: NodeCopyID
A199: PredecessorArcID
A200: SuccessorArcID | B200: 40 | C200: 41
A201: QualityFactor | B201: 1
A202: CostFactor | B202: 0
A203: IsKeyNode | B203: FALSE
A204: NodeName | B204: Choose
A205: Rounded | B205: FALSE
A206: nTriggerID

Sheet Arc Data (hidden)
A1: Entry Count | B1: 23
A2: Next Available ID | B2: 47
A4: ID | B4: 1
A5: aParentFactorID | B5: 1
A6: Stochastic | B6: TRUE
A7: Orientation | B7: 3.141592741
A8: PredecessorNodeID | B8: 1
A9: SuccessorNodeID | B9: 2
A10: SuccessorNodeCopyID | B10: 0
A11: TriggerID | B11: 5
A12: RateProb | B12: ID 1
A13: QualityToll | B13: 0
A14: CostToll | B14: 0
A16: ID | B16: 2
A17: aParentFactorID | B17: 1
A18: Stochastic | B18: FALSE
A19: Orientation | B19: 3.141592741
A20: PredecessorNodeID | B20: 2
A21: SuccessorNodeID | B21: 0
A22: SuccessorNodeCopyID | B22: 0
A23: TriggerID
A24: RateProb | B24: pDEmb
A25: QualityToll | B25: 0
A26: CostToll | B26: 0
A28: ID | B28: 3
A29: aParentFactorID | B29: 1
A30: Stochastic | B30: FALSE
A31: Orientation | B31: 3.141592741
A32: PredecessorNodeID | B32: 2
A33: SuccessorNodeID | B33: 3
A34: SuccessorNodeCopyID | B34: 0
A35: TriggerID
A36: RateProb | B36: 1-pDEmb
A37: QualityToll | B37: TollEmb
A38: CostToll | B38: 0
A40: ID | B40: 4
A41: aParentFactorID | B41: 1
A42: Stochastic | B42: FALSE
A43: Orientation | B43: 3.141592741
A44: PredecessorNodeID | B44: 3
A45: SuccessorNodeID | B45: 4
A46: SuccessorNodeCopyID | B46: 0
A47: TriggerID
A48: RateProb | B48: pLTMEmb
A49: QualityToll | B49: 0
A50: CostToll | B50: 0
A52: ID | B52: 5
A53: aParentFactorID | B53: 1
A54: Stochastic | B54: FALSE
A55: Orientation | B55: 3.141592741
A56: PredecessorNodeID | B56: 3
A57: SuccessorNodeID | B57: 1
A58: SuccessorNodeCopyID | B58: 1
A59: TriggerID
A60: RateProb | B60: 1-pLTMEmb
A61: QualityToll | B61: 0
A62: CostToll | B62: 0
A64: ID | B64: 6
A65: aParentFactorID | B65: 1
A66: Stochastic | B66: TRUE
A67: Orientation | B67: 3.141592741
A68: PredecessorNodeID | B68: 4
A69: SuccessorNodeID | B69: 5
A70: SuccessorNodeCopyID | B70: 0
A71: TriggerID | B71: 6
A72: RateProb | B72: ID 2
A73: QualityToll | B73: 0
A74: CostToll | B74: 0
A76: ID | B76: 7
A77: aParentFactorID | B77: 1
A78: Stochastic | B78: FALSE
A79: Orientation | B79: 3.141592741
A80: PredecessorNodeID | B80: 5
A81: SuccessorNodeID | B81: 0
A82: SuccessorNodeCopyID | B82: 0
A83: TriggerID
A84: RateProb | B84: pDEmb
A85: QualityToll | B85: 0
A86: CostToll | B86: 0
A88: ID | B88: 8
A89: aParentFactorID | B89: 1
A90: Stochastic | B90: FALSE
A91: Orientation | B91: 3.141592741
A92: PredecessorNodeID | B92: 5
A93: SuccessorNodeID | B93: 4
A94: SuccessorNodeCopyID | B94: 2
A95: TriggerID
A96: RateProb | B96: 1-pDEmb
A97: QualityToll | B97: TollEmb
A98: CostToll | B98: 0
A100: ID | B100: 9
A101: aParentFactorID | B101: 2
A102: Stochastic | B102: TRUE
A103: Orientation | B103: 3.141592741
A104: PredecessorNodeID | B104: 8
A105: SuccessorNodeID | B105: 6
A106: SuccessorNodeCopyID | B106: 3
A107: TriggerID
A108: RateProb | B108: Spike_(2/12)
A109: QualityToll | B109: 0
A110: CostToll | B110: 0
A112: ID | B112: 28
A113: aParentFactorID | B113: 5
A114: Stochastic | B114: TRUE
A115: Orientation | B115: 3.141592741
A116: PredecessorNodeID | B116: 31
A117: SuccessorNodeID | B117: 32
A118: SuccessorNodeCopyID | B118: 0
A119: TriggerID | B119: 7
A120: RateProb | B120: ID 3
A121: QualityToll | B121: 0
A122: CostToll | B122: 0
A124: ID | B124: 29
A125: aParentFactorID | B125: 5
A126: Stochastic | B126: FALSE
A127: Orientation | B127: 3.141592741
A128: PredecessorNodeID | B128: 32
A129: SuccessorNodeID | B129: 33
A130: SuccessorNodeCopyID | B130: 0
A131: TriggerID
A132: RateProb | B132: 1-pDHem
A133: QualityToll | B133: TollHem
A134: CostToll | B134: 0
A136: ID | B136: 30
A137: aParentFactorID | B137: 5
A138: Stochastic | B138: FALSE
A139: Orientation | B139: 3.141592741
A140: PredecessorNodeID | B140: 33
A141: SuccessorNodeID | B141: 31
A142: SuccessorNodeCopyID | B142: 4
A143: TriggerID
A144: RateProb | B144: 1-pLTMHem
A145: QualityToll | B145: 0
A146: CostToll | B146: 0
A148: ID | B148: 31
A149: aParentFactorID | B149: 5
A150: Stochastic | B150: FALSE
A151: Orientation | B151: 3.141592741
A152: PredecessorNodeID | B152: 33
A153: SuccessorNodeID | B153: 34
A154: SuccessorNodeCopyID | B154: 0
A155: TriggerID
A156: RateProb | B156: pLTMHem
A157: QualityToll | B157: 0
A158: CostToll | B158: 0
A160: ID | B160: 32
A161: aParentFactorID | B161: 5
A162: Stochastic | B162: TRUE
A163: Orientation | B163: 3.141592741
A164: PredecessorNodeID | B164: 34
A165: SuccessorNodeID | B165: 35
A166: SuccessorNodeCopyID | B166: 0
A167: TriggerID | B167: 8
A168: RateProb | B168: ID 4
A169: QualityToll | B169: 0
A170: CostToll | B170: 0
A172: ID | B172: 33
A173: aParentFactorID | B173: 5
A174: Stochastic | B174: FALSE
A175: Orientation | B175: 3.141592741
A176: PredecessorNodeID | B176: 35
A177: SuccessorNodeID | B177: 34
A178: SuccessorNodeCopyID | B178: 5
A179: TriggerID
A180: RateProb | B180: 1-pDHem
A181: QualityToll | B181: TollHem
A182: CostToll | B182: 0
A184: ID | B184: 34
A185: aParentFactorID | B185: 5
A186: Stochastic | B186: FALSE
A187: Orientation | B187: 3.141592741
A188: PredecessorNodeID | B188: 35
A189: SuccessorNodeID | B189: 0
A190: SuccessorNodeCopyID | B190: 0
A191: TriggerID
A192: RateProb | B192: pDHem
A193: QualityToll | B193: 0
A194: CostToll | B194: 0
A196: ID | B196: 35
A197: aParentFactorID | B197: 5
A198: Stochastic | B198: FALSE
A199: Orientation | B199: 3.141592741
A200: PredecessorNodeID | B200: 32
A201: SuccessorNodeID | B201: 0
A202: SuccessorNodeCopyID | B202: 0
A203: TriggerID
A204: RateProb | B204: pDHem
A205: QualityToll | B205: 0
A206: CostToll | B206: 0
A208: ID | B208: 36
A209: aParentFactorID | B209: 6
A210: Stochastic | B210: TRUE
A211: Orientation | B211: 3.141592741
A212: PredecessorNodeID | B212: 36
A213: SuccessorNodeID | B213: 37
A214: SuccessorNodeCopyID | B214: 0
A215: TriggerID | B215: 10
A216: RateProb | B216: ID 5
A217: QualityToll | B217: 0
A218: CostToll | B218: 0
... 55 more rows

Sheet NodeCopy Data (hidden)
A1: Entry Count | B1: 6
A2: Next Available ID | B2: 8
A4: ID | B4: 1
A5: ncParentFactorID | B5: 1
A6: NodeOriginalID | B6: 1
A7: cPredecessorArcID | B7: 5
A9: ID | B9: 2
A10: ncParentFactorID | B10: 1
A11: NodeOriginalID | B11: 4
A12: cPredecessorArcID | B12: 8
A14: ID | B14: 3
A15: ncParentFactorID | B15: 2
A16: NodeOriginalID | B16: 6
A17: cPredecessorArcID | B17: 9
A19: ID | B19: 4
A20: ncParentFactorID | B20: 5
A21: NodeOriginalID | B21: 31
A22: cPredecessorArcID | B22: 30
A24: ID | B24: 5
A25: ncParentFactorID | B25: 5
A26: NodeOriginalID | B26: 34
A27: cPredecessorArcID | B27: 33
A29: ID | B29: 6
A30: ncParentFactorID | B30: 6
A31: NodeOriginalID | B31: 36
A32: cPredecessorArcID | B32: 37

Sheet Dependency Data (hidden)
A1: Entry Count | B1: 5
A2: Next Available ID | B2: 6
A4: ID | B4: 1
A5: IfFactorID | B5: 2
A6: StateID | B6: 6 | C6: (other)
A7: ThenD | B7: rSE_W | C7: rSE_NoW
A9: ID | B9: 2
A10: IfFactorID | B10: 2
A11: StateID | B11: 6 | C11: (other)
A12: ThenD | B12: rSE_W | C12: rSE_NoW
A14: ID | B14: 3
A15: IfFactorID | B15: 2
A16: StateID | B16: 6 | C16: (other)
A17: ThenD | B17: rSH_W | C17: rSH_NoW
A19: ID | B19: 4
A20: IfFactorID | B20: 2
A21: StateID | B21: 6 | C21: (other)
A22: ThenD | B22: rSH_W | C22: rSH_NoW
A24: ID | B24: 5
A25: IfFactorID | B25: 2
A26: StateID | B26: 6 | C26: (other)
A27: ThenD | B27: rPE_W | C27: rPE_NoW

Sheet Trigger Data (hidden)
A1: Entry Count | B1: 5
A2: Next Available ID | B2: 11
A4: ID | B4: 5
A5: FactorTriggeredID | B5: 2
A6: OriginNodeID | B6: 7
A7: DestinationNodeID | B7: 6
A9: ID | B9: 6
A10: FactorTriggeredID | B10: 2
A11: OriginNodeID | B11: 7
A12: DestinationNodeID | B12: 6
A14: ID | B14: 7
A15: FactorTriggeredID | B15: 2
A16: OriginNodeID | B16: 6
A17: DestinationNodeID | B17: 8
A19: ID | B19: 8
A20: FactorTriggeredID | B20: 2
A21: OriginNodeID | B21: 6
A22: DestinationNodeID | B22: 8
A24: ID | B24: 10
A25: FactorTriggeredID | B25: 2
A26: OriginNodeID | B26: 7
A27: DestinationNodeID | B27: 6

Sheet _Cohort
A2: Cycle Time = | B2: 0.1
A3: Start Time = | B3: 0
A4: Time Horizon = | B4: 20
A5: Discount Rate = | B5: =_DiscountRate -> 0
D6: Anticoag_Status: | E6: Warfarin | F6: Warfarin | G6: Warfarin | H6: Warfarin | I6: No Warfarin | J6: No Warfarin | K6: Temporarily Discontinue | L6: Temporarily Discontinue | M6: Temporarily Discontinue | N6: Temporarily Discontinue | O6: Choose | P6: Terminal Node
D7: Pul_Embolism: | E7: No Embolism | F7: No Embolism | G7: No Embolism | H7: No Embolism | I7: No Embolism | J7: No Embolism | K7: No Embolism | L7: No Embolism | M7: No Embolism | N7: No Embolism | O7: No Embolism
D8: Sys_Embolism: | E8: No Embolism | F8: No Embolism | G8: Long Term Morbidity | H8: Long Term Morbidity | I8: No Embolism | J8: No Embolism | K8: No Embolism | L8: No Embolism | M8: Long Term Morbidity | N8: Long Term Morbidity | O8: No Embolism
D9: Sys_Hemorrhage: | E9: No Hemorrhage | F9: Long Term Morbidity | G9: No Hemorrhage | H9: Long Term Morbidity | I9: No Hemorrhage | J9: Long Term Morbidity | K9: No Hemorrhage | L9: Long Term Morbidity | M9: No Hemorrhage | N9: Long Term Morbidity | O9: No Hemorrhage
D10: Background: | E10: Alive | F10: Alive | G10: Alive | H10: Alive | I10: Alive | J10: Alive | K10: Alive | L10: Alive | M10: Alive | N10: Alive | O10: Alive
D11: Chance/Decision? | E11: 0 | F11: 0 | G11: 0 | H11: 0 | I11: 0 | J11: 0 | K11: 0 | L11: 0 | M11: 0 | N11: 0 | O11: 1
D13: Initial Cohort = | O13: 1
D15: Time | E15: Counts
D16: =IF(_R,_tI,IF(_t>_tF,_tNw,D31)) -> 1.6 | E16: =IF(_R,E13,IF(_tNw>=_tF,E16,E31)) -> 0.9615506009 | F16: =IF(_R,F13,IF(_tNw>=_tF,F16,F31)) -> 0.002798030444 | G16: =IF(_R,G13,IF(_tNw>=_tF,G16,G31)) -> 0.001821046989 | H16: =IF(_R,H13,IF(_tNw>=_tF,H16,H31)) -> 6.790245728e-06 | I16: =IF(_R,I13,IF(_tNw>=_tF,I16,I31)) -> 0 | J16: =IF(_R,J13,IF(_tNw>=_tF,J16,J31)) -> 0 | K16: =IF(_R,K13,IF(_tNw>=_tF,K16,K31)) -> 0.007017838633 | L16: =IF(_R,L13,IF(_tNw>=_tF,L16,L31)) -> 0.0004206462923 | M16: =IF(_R,M13,IF(_tNw>=_tF,M16,M31)) -> 1.88363094e-05 | N16: =IF(_R,N13,IF(_tNw>=_tF,N16,N31)) -> 1.138113106e-06 | O16: =IF(_R,O13,IF(_tNw>=_tF,O16,O31)) -> 0 | P16: =IF(_R,P13,IF(_tNw>=_tF,P16,P31)) -> 0.02636507207 | Q16: =(SUMPRODUCT(E11:Q11,E16:Q16) > 0) -> FALSE
C17: Transition Counts: | D17: Warfarin / No Embolism / No Embolism / No Hemorrhage / Alive | E17: =[1]!xPr(rPE_W*_dT)*(1-pDEmb)+[1]!xPr(rSE_W*_dT)*(1-pDEmb)*(1-pLTMEmb) -> 0.001087590441 | I17: =[1]!xPr(rPE_NoW*_dT)*(1-pDEmb)+[1]!xPr(rSE_NoW*_dT)*(1-pDEmb)*(1-pLTMEmb) -> 0.005642958309 | K17: =[1]!xPr([1]!Spike_(2/12)*_dT) -> 0 | O17: =dWarf -> 1
D18: Warfarin / No Embolism / No Embolism / Long Term Morbidity / Alive | F18: =[1]!xPr(rPE_W*_dT)*(1-pDEmb)+[1]!xPr(rSE_W*_dT)*(1-pDEmb)*(1-pLTMEmb) -> 0.001087590441 | J18: =[1]!xPr(rPE_NoW*_dT)*(1-pDEmb)+[1]!xPr(rSE_NoW*_dT)*(1-pDEmb)*(1-pLTMEmb) -> 0.005642958309 | L18: =[1]!xPr([1]!Spike_(2/12)*_dT) -> 0
D19: Warfarin / No Embolism / Long Term Morbidity / No Hemorrhage / Alive | E19: =[1]!xPr(rSE_W*_dT)*(1-pDEmb)*pLTMEmb -> 0.0001158782788 | G19: =[1]!xPr(rPE_W*_dT)*(1-pDEmb)+[1]!xPr(rSE_W*_dT)*(1-pDEmb) -> 0.00120346872 | I19: =[1]!xPr(rSE_NoW*_dT)*(1-pDEmb)*pLTMEmb -> 0.0006427137156 | M19: =[1]!xPr([1]!Spike_(2/12)*_dT) -> 0
D20: Warfarin / No Embolism / Long Term Morbidity / Long Term Morbidity / Alive | F20: =[1]!xPr(rSE_W*_dT)*(1-pDEmb)*pLTMEmb -> 0.0001158782788 | H20: =[1]!xPr(rPE_W*_dT)*(1-pDEmb)+[1]!xPr(rSE_W*_dT)*(1-pDEmb) -> 0.00120346872 | J20: =[1]!xPr(rSE_NoW*_dT)*(1-pDEmb)*pLTMEmb -> 0.0006427137156 | N20: =[1]!xPr([1]!Spike_(2/12)*_dT) -> 0
D21: No Warfarin / No Embolism / No Embolism / No Hemorrhage / Alive | I21: =[1]!xPr(rSH_NoW*_dT)*(1-pDHem)*(1-pLTMHem) -> 0 | O21: =(1-dWarf) -> 0
D22: No Warfarin / No Embolism / No Embolism / Long Term Morbidity / Alive | I22: =[1]!xPr(rSH_NoW*_dT)*(1-pDHem)*pLTMHem -> 0 | J22: =[1]!xPr(rSH_NoW*_dT)*(1-pDHem) -> 0
D23: Temporarily Discontinue / No Embolism / No Embolism / No Hemorrhage / Alive | E23: =[1]!xPr(rSH_W*_dT)*(1-pDHem)*(1-pLTMHem) -> 0.003652795047 | K23: =[1]!xPr(rPE_NoW*_dT)*(1-pDEmb)+[1]!xPr(rSE_NoW*_dT)*(1-pDEmb)*(1-pLTMEmb)+[1]!xPr(rSH_NoW*_dT)*(1-pDHem)*(1-pLTMHem) -> 0.005642958309
D24: Temporarily Discontinue / No Embolism / No Embolism / Long Term Morbidity / Alive | E24: =[1]!xPr(rSH_W*_dT)*(1-pDHem)*pLTMHem -> 0.0002085104995 | F24: =[1]!xPr(rSH_W*_dT)*(1-pDHem) -> 0.003861305547 | K24: =[1]!xPr(rSH_NoW*_dT)*(1-pDHem)*pLTMHem -> 0 | L24: =[1]!xPr(rPE_NoW*_dT)*(1-pDEmb)+[1]!xPr(rSE_NoW*_dT)*(1-pDEmb)*(1-pLTMEmb)+[1]!xPr(rSH_NoW*_dT)*(1-pDHem) -> 0.005642958309
D25: Temporarily Discontinue / No Embolism / Long Term Morbidity / No Hemorrhage / Alive | G25: =[1]!xPr(rSH_W*_dT)*(1-pDHem)*(1-pLTMHem) -> 0.003652795047 | K25: =[1]!xPr(rSE_NoW*_dT)*(1-pDEmb)*pLTMEmb -> 0.0006427137156 | M25: =[1]!xPr(rPE_NoW*_dT)*(1-pDEmb)+[1]!xPr(rSE_NoW*_dT)*(1-pDEmb)+[1]!xPr(rSH_NoW*_dT)*(1-pDHem)*(1-pLTMHem) -> 0.006285672024
D26: Temporarily Discontinue / No Embolism / Long Term Morbidity / Long Term Morbidity / Alive | G26: =[1]!xPr(rSH_W*_dT)*(1-pDHem)*pLTMHem -> 0.0002085104995 | H26: =[1]!xPr(rSH_W*_dT)*(1-pDHem) -> 0.003861305547 | L26: =[1]!xPr(rSE_NoW*_dT)*(1-pDEmb)*pLTMEmb -> 0.0006427137156 | M26: =[1]!xPr(rSH_NoW*_dT)*(1-pDHem)*pLTMHem -> 0 | N26: =[1]!xPr(rPE_NoW*_dT)*(1-pDEmb)+[1]!xPr(rSE_NoW*_dT)*(1-pDEmb)+[1]!xPr(rSH_NoW*_dT)*(1-pDHem) -> 0.006285672024
D27: Choose / No Embolism / No Embolism / No Hemorrhage / Alive
D28: Terminal Node | E28: =[1]!xPr(rPE_W*_dT)*pDEmb+[1]!xPr(rSE_W*_dT)*pDEmb+[1]!xPr(rSH_W*_dT)*pDHem+[1]!xPr([1]!rMortUS(Age+_t,Sex)*_dT) -> 0.001689786839 | F28: =[1]!xPr(rPE_W*_dT)*pDEmb+[1]!xPr(rSE_W*_dT)*pDEmb+[1]!xPr(rSH_W*_dT)*pDHem+[1]!xPr([1]!rMortUS(Age+_t,Sex)*_dT) -> 0.001689786839 | G28: =[1]!xPr(rPE_W*_dT)*pDEmb+[1]!xPr(rSE_W*_dT)*pDEmb+[1]!xPr(rSH_W*_dT)*pDHem+[1]!xPr([1]!rMortUS(Age+_t,Sex)*_dT) -> 0.001689786839 | H28: =[1]!xPr(rPE_W*_dT)*pDEmb+[1]!xPr(rSE_W*_dT)*pDEmb+[1]!xPr(rSH_W*_dT)*pDHem+[1]!xPr([1]!rMortUS(Age+_t,Sex)*_dT) -> 0.001689786839 | I28: =[1]!xPr(rPE_NoW*_dT)*pDEmb+[1]!xPr(rSE_NoW*_dT)*pDEmb+[1]!xPr(rSH_NoW*_dT)*pDHem+[1]!xPr([1]!rMortUS(Age+_t,Sex)*_dT) -> 0.003239289346 | J28: =[1]!xPr(rPE_NoW*_dT)*pDEmb+[1]!xPr(rSE_NoW*_dT)*pDEmb+[1]!xPr(rSH_NoW*_dT)*pDHem+[1]!xPr([1]!rMortUS(Age+_t,Sex)*_dT) -> 0.003239289346 | K28: =[1]!xPr(rPE_NoW*_dT)*pDEmb+[1]!xPr(rSE_NoW*_dT)*pDEmb+[1]!xPr(rSH_NoW*_dT)*pDHem+[1]!xPr([1]!rMortUS(Age+_t,Sex)*_dT) -> 0.003239289346 | L28: =[1]!xPr(rPE_NoW*_dT)*pDEmb+[1]!xPr(rSE_NoW*_dT)*pDEmb+[1]!xPr(rSH_NoW*_dT)*pDHem+[1]!xPr([1]!rMortUS(Age+_t,Sex)*_dT) -> 0.003239289346 | M28: =[1]!xPr(rPE_NoW*_dT)*pDEmb+[1]!xPr(rSE_NoW*_dT)*pDEmb+[1]!xPr(rSH_NoW*_dT)*pDHem+[1]!xPr([1]!rMortUS(Age+_t,Sex)*_dT) -> 0.003239289346 | N28: =[1]!xPr(rPE_NoW*_dT)*pDEmb+[1]!xPr(rSE_NoW*_dT)*pDEmb+[1]!xPr(rSH_NoW*_dT)*pDHem+[1]!xPr([1]!rMortUS(Age+_t,Sex)*_dT) -> 0.003239289346
D29: Entering Counts | E29: =SUMPRODUCT(_tR,E17:P17) -> 0.001045773242 | F29: =SUMPRODUCT(_tR,E18:P18) -> 3.043111165e-06 | G29: =SUMPRODUCT(_tR,E19:P19) -> 0.0001136144017 | H29: =SUMPRODUCT(_tR,E20:P20) -> 3.324028002e-07 | I29: =SUMPRODUCT(_tR,E21:P21) -> 0 | J29: =SUMPRODUCT(_tR,E22:P22) -> 0 | K29: =SUMPRODUCT(_tR,E23:P23) -> 0.003551948643 | L29: =SUMPRODUCT(_tR,E24:P24) -> 0.0002136711361 | M29: =SUMPRODUCT(_tR,E25:P25) -> 1.128077143e-05 | N29: =SUMPRODUCT(_tR,E26:P26) -> 6.834355781e-07 | O29: =SUMPRODUCT(_tR,E27:P27) -> 0 | P29: =SUMPRODUCT(_tR,E28:P28) -> 0.001656792389
D30: Departing Counts | E30: =IF(_CD=1,E16,E16*SUM(E17:E28)) -> 0.00649485229 | F30: =IF(_CD=1,F16,F16*SUM(F17:F28)) -> 1.889946761e-05 | G30: =IF(_CD=1,G16,G16*SUM(G17:G28)) -> 1.230037317e-05 | H30: =IF(_CD=1,H16,H16*SUM(H17:H28)) -> 4.58651297e-08 | I30: =IF(_CD=1,I16,I16*SUM(I17:I28)) -> 0 | J30: =IF(_CD=1,J16,J16*SUM(J17:J28)) -> 0 | K30: =IF(_CD=1,K16,K16*SUM(K17:K28)) -> 6.684464189e-05 | L30: =IF(_CD=1,L16,L16*SUM(L17:L28)) -> 4.006639685e-06 | M30: =IF(_CD=1,M16,M16*SUM(M17:M28)) -> 1.794151194e-07 | N30: =IF(_CD=1,N16,N16*SUM(N17:N28)) -> 1.084048337e-08 | O30: =IF(_CD=1,O16,O16*SUM(O17:O28)) -> 0 | P30: =IF(_CD=1,P16,P16*SUM(P17:P28)) -> 0
D31: =IF(_CP,D16,D16+_dT) -> 1.7 | E31: =E16+E29-E30 -> 0.9561015219 | F31: =F16+F29-F30 -> 0.002782174087 | G31: =G16+G29-G30 -> 0.001922361018 | H31: =H16+H29-H30 -> 7.076783398e-06 | I31: =I16+I29-I30 -> 0 | J31: =J16+J29-J30 -> 0 | K31: =K16+K29-K30 -> 0.01050294263 | L31: =L16+L29-L30 -> 0.0006303107887 | M31: =M16+M29-M30 -> 2.993766571e-05 | N31: =N16+N29-N30 -> 1.810708201e-06 | O31: =O16+O29-O30 -> 0 | P31: =P16+P29-P30 -> 0.02802186446
D33: Quality Coefficients (at t): | E33: =1 -> 1 | F33: =1 -> 1 | G33: =1 -> 1 | H33: =1 -> 1 | I33: =1 -> 1 | J33: =1 -> 1 | K33: =1 -> 1 | L33: =1 -> 1 | M33: =1 -> 1 | N33: =1 -> 1
D34: (at t+dt): | E34: =EXP(-_dR*_dT) -> 1 | F34: =EXP(-_dR*_dT) -> 1 | G34: =EXP(-_dR*_dT) -> 1 | H34: =EXP(-_dR*_dT) -> 1 | I34: =EXP(-_dR*_dT) -> 1 | J34: =EXP(-_dR*_dT) -> 1 | K34: =EXP(-_dR*_dT) -> 1 | L34: =EXP(-_dR*_dT) -> 1 | M34: =EXP(-_dR*_dT) -> 1 | N34: =EXP(-_dR*_dT) -> 1
C36: Transition QALY Tolls: | D36: Warfarin / Embolism / No Embolism / No Hemorrhage / Alive | E36: =[1]!xPr(rPE_W*_dT)*(1-pDEmb)*TollHem -> 1.45760441e-05 | I36: =[1]!xPr(rPE_NoW*_dT)*(1-pDEmb)*TollHem -> 7.273467844e-05
D37: Warfarin / No Embolism / Embolism / No Hemorrhage / Alive | E37: =[1]!xPr(rSE_W*_dT)*((1-pDEmb)*pLTMEmb*TollEmb+(1-pDEmb)*(1-pLTMEmb)*TollEmb) -> 2.099244181e-05 | I37: =[1]!xPr(rSE_NoW*_dT)*((1-pDEmb)*pLTMEmb*TollEmb+(1-pDEmb)*(1-pLTMEmb)*TollEmb) -> 0.0001164336441
D38: Temporarily Discontinue / No Embolism / No Embolism / Hemorrhage / Alive | E38: =[1]!xPr(rSH_W*_dT)*((1-pDHem)*pLTMHem*TollHem+(1-pDHem)*(1-pLTMHem)*TollHem) -> 8.044386555e-05 | K38: =[1]!xPr(rSH_NoW*_dT)*((1-pDHem)*pLTMHem*TollHem+(1-pDHem)*(1-pLTMHem)*TollHem) -> 0
D39: Warfarin / Embolism / No Embolism / Long Term Morbidity / Alive | F39: =[1]!xPr(rPE_W*_dT)*(1-pDEmb)*TollHem -> 1.45760441e-05 | J39: =[1]!xPr(rPE_NoW*_dT)*(1-pDEmb)*TollHem -> 7.273467844e-05
D40: Warfarin / No Embolism / Embolism / Long Term Morbidity / Alive | F40: =[1]!xPr(rSE_W*_dT)*((1-pDEmb)*pLTMEmb*TollEmb+(1-pDEmb)*(1-pLTMEmb)*TollEmb) -> 2.099244181e-05 | J40: =[1]!xPr(rSE_NoW*_dT)*((1-pDEmb)*pLTMEmb*TollEmb+(1-pDEmb)*(1-pLTMEmb)*TollEmb) -> 0.0001164336441
D41: Temporarily Discontinue / No Embolism / No Embolism / Subseq Hemorrhage / Alive | F41: =[1]!xPr(rSH_W*_dT)*(1-pDHem)*TollHem -> 8.044386555e-05 | L41: =[1]!xPr(rSH_NoW*_dT)*(1-pDHem)*TollHem -> 0
D42: Warfarin / Embolism / Long Term Morbidity / No Hemorrhage / Alive | G42: =[1]!xPr(rPE_W*_dT)*(1-pDEmb)*TollHem -> 1.45760441e-05
D43: Warfarin / No Embolism / Subseq Embolism / No Hemorrhage / Alive | G43: =[1]!xPr(rSE_W*_dT)*(1-pDEmb)*TollEmb -> 2.099244181e-05
D44: Temporarily Discontinue / No Embolism / Long Term Morbidity / Hemorrhage / Alive | G44: =[1]!xPr(rSH_W*_dT)*((1-pDHem)*pLTMHem*TollHem+(1-pDHem)*(1-pLTMHem)*TollHem) -> 8.044386555e-05 | M44: =[1]!xPr(rSH_NoW*_dT)*((1-pDHem)*pLTMHem*TollHem+(1-pDHem)*(1-pLTMHem)*TollHem) -> 0
D45: Warfarin / Embolism / Long Term Morbidity / Long Term Morbidity / Alive | H45: =[1]!xPr(rPE_W*_dT)*(1-pDEmb)*TollHem -> 1.45760441e-05
D46: Warfarin / No Embolism / Subseq Embolism / Long Term Morbidity / Alive | H46: =[1]!xPr(rSE_W*_dT)*(1-pDEmb)*TollEmb -> 2.099244181e-05
D47: Temporarily Discontinue / No Embolism / Long Term Morbidity / Subseq Hemorrhage / Alive | H47: =[1]!xPr(rSH_W*_dT)*(1-pDHem)*TollHem -> 8.044386555e-05 | N47: =[1]!xPr(rSH_NoW*_dT)*(1-pDHem)*TollHem -> 0
D48: No Warfarin / No Embolism / No Embolism / Hemorrhage / Alive | I48: =[1]!xPr(rSH_NoW*_dT)*((1-pDHem)*pLTMHem*TollHem+(1-pDHem)*(1-pLTMHem)*TollHem) -> 0
D49: No Warfarin / No Embolism / No Embolism / Subseq Hemorrhage / Alive | J49: =[1]!xPr(rSH_NoW*_dT)*(1-pDHem)*TollHem -> 0
D50: Warfarin / No Embolism / No Embolism / No Hemorrhage / Alive | K50: =0 -> 0 | O50: =0 -> 0
D51: Temporarily Discontinue / Embolism / No Embolism / No Hemorrhage / Alive | K51: =[1]!xPr(rPE_NoW*_dT)*(1-pDEmb)*TollHem -> 7.273467844e-05
D52: Temporarily Discontinue / No Embolism / Embolism / No Hemorrhage / Alive | K52: =[1]!xPr(rSE_NoW*_dT)*((1-pDEmb)*pLTMEmb*TollEmb+(1-pDEmb)*(1-pLTMEmb)*TollEmb) -> 0.0001164336441
D53: Warfarin / No Embolism / No Embolism / Long Term Morbidity / Alive | L53: =0 -> 0
D54: Temporarily Discontinue / Embolism / No Embolism / Long Term Morbidity / Alive | L54: =[1]!xPr(rPE_NoW*_dT)*(1-pDEmb)*TollHem -> 7.273467844e-05
D55: Temporarily Discontinue / No Embolism / Embolism / Long Term Morbidity / Alive | L55: =[1]!xPr(rSE_NoW*_dT)*((1-pDEmb)*pLTMEmb*TollEmb+(1-pDEmb)*(1-pLTMEmb)*TollEmb) -> 0.0001164336441
D56: Warfarin / No Embolism / Long Term Morbidity / No Hemorrhage / Alive | M56: =0 -> 0
D57: Temporarily Discontinue / Embolism / Long Term Morbidity / No Hemorrhage / Alive | M57: =[1]!xPr(rPE_NoW*_dT)*(1-pDEmb)*TollHem -> 7.273467844e-05
D58: Temporarily Discontinue / No Embolism / Subseq Embolism / No Hemorrhage / Alive | M58: =[1]!xPr(rSE_NoW*_dT)*(1-pDEmb)*TollEmb -> 0.0001164336441
D59: Warfarin / No Embolism / Long Term Morbidity / Long Term Morbidity / Alive | N59: =0 -> 0
D60: Temporarily Discontinue / Embolism / Long Term Morbidity / Long Term Morbidity / Alive | N60: =[1]!xPr(rPE_NoW*_dT)*(1-pDEmb)*TollHem -> 7.273467844e-05
D61: Temporarily Discontinue / No Embolism / Subseq Embolism / Long Term Morbidity / Alive | N61: =[1]!xPr(rSE_NoW*_dT)*(1-pDEmb)*TollEmb -> 0.0001164336441
D62: No Warfarin / No Embolism / No Embolism / No Hemorrhage / Alive | O62: =0 -> 0
D63: Terminal Node | E63: =0 -> 0 | F63: =0 -> 0 | G63: =0 -> 0 | H63: =0 -> 0 | I63: =0 -> 0 | J63: =0 -> 0 | K63: =0 -> 0 | L63: =0 -> 0 | M63: =0 -> 0 | N63: =0 -> 0
D64: Incremental QALY Tolls: | E64: =IF(_t>_tF,0,_tR*SUM(E36:E63)) -> 0.0001115517463 | F64: =IF(_t>_tF,0,_tR*SUM(F36:F63)) -> 3.246060912e-07 | G64: =IF(_t>_tF,0,_tR*SUM(G36:G63)) -> 2.112639434e-07 | H64: =IF(_t>_tF,0,_tR*SUM(H36:H63)) -> 7.877523739e-10 | I64: =IF(_t>_tF,0,_tR*SUM(I36:I63)) -> 0 | J64: =IF(_t>_tF,0,_tR*SUM(J36:J63)) -> 0 | K64: =IF(_t>_tF,0,_tR*SUM(K36:K63)) -> 1.327552762e-06 | L64: =IF(_t>_tF,0,_tR*SUM(L36:L63)) -> 7.957295351e-08 | M64: =IF(_t>_tF,0,_tR*SUM(M36:M63)) -> 3.563233053e-09 | N64: =IF(_t>_tF,0,_tR*SUM(N36:N63)) -> 2.152949472e-10 | O64: =IF(_t>_tF,0,_tR*SUM(O36:O63)) -> 0
D65: Incremental QALYs: | E65: =IF(_t>_tF,0,IF(_CP,0,_dT/2*(E33*E16+E34*E31))) -> 0.09588260614 | F65: =IF(_t>_tF,0,IF(_CP,0,_dT/2*(F33*F16+F34*F31))) -> 0.0002790102265 | G65: =IF(_t>_tF,0,IF(_CP,0,_dT/2*(G33*G16+G34*G31))) -> 0.0001871704004 | H65: =IF(_t>_tF,0,IF(_CP,0,_dT/2*(H33*H16+H34*H31))) -> 6.933514563e-07 | I65: =IF(_t>_tF,0,IF(_CP,0,_dT/2*(I33*I16+I34*I31))) -> 0 | J65: =IF(_t>_tF,0,IF(_CP,0,_dT/2*(J33*J16+J34*J31))) -> 0 | K65: =IF(_t>_tF,0,IF(_CP,0,_dT/2*(K33*K16+K34*K31))) -> 0.0008760390634 | L65: =IF(_t>_tF,0,IF(_CP,0,_dT/2*(L33*L16+L34*L31))) -> 5.254785405e-05 | M65: =IF(_t>_tF,0,IF(_CP,0,_dT/2*(M33*M16+M34*M31))) -> 2.438698755e-06 | N65: =IF(_t>_tF,0,IF(_CP,0,_dT/2*(N33*N16+N34*N31))) -> 1.474410653e-07 | O65: =IF(_t>_tF,0,IF(_CP,0,_dT/2*(O33*O16+O34*O31))) -> 0
D66: Incremental Total: | E66: =E65-E64 -> 0.09577105439 | F66: =F65-F64 -> 0.0002786856204 | G66: =G65-G64 -> 0.0001869591364 | H66: =H65-H64 -> 6.925637039e-07 | I66: =I65-I64 -> 0 | J66: =J65-J64 -> 0 | K66: =K65-K64 -> 0.0008747115107 | L66: =L65-L64 -> 5.246828109e-05 | M66: =M65-M64 -> 2.435135522e-06 | N66: =N65-N64 -> 1.472257704e-07 | O66: =O65-O64 -> 0
D67: Cum Discounted QALYs: | E67: =IF(_R,E66,IF(_t>=_tF,E67,E67+E66*EXP(-_dR*_t))) -> 1.66096772 | F67: =IF(_R,F66,IF(_t>=_tF,F67,F67+F66*EXP(-_dR*_t))) -> 0.0024209661 | G67: =IF(_R,G66,IF(_t>=_tF,G67,G67+G66*EXP(-_dR*_t))) -> 0.001657698446 | H67: =IF(_R,H66,IF(_t>=_tF,H67,H67+H66*EXP(-_dR*_t))) -> 4.56940062e-06 | I67: =IF(_R,I66,IF(_t>=_tF,I67,I67+I66*EXP(-_dR*_t))) -> 0 | J67: =IF(_R,J66,IF(_t>=_tF,J67,J67+J66*EXP(-_dR*_t))) -> 0 | K67: =IF(_R,K66,IF(_t>=_tF,K67,K67+K66*EXP(-_dR*_t))) -> 0.00870944572 | L67: =IF(_R,L66,IF(_t>=_tF,L67,L67+L66*EXP(-_dR*_t))) -> 0.0005094956618 | M67: =IF(_R,M66,IF(_t>=_tF,M67,M67+M66*EXP(-_dR*_t))) -> 1.540834679e-05 | N67: =IF(_R,N66,IF(_t>=_tF,N67,N67+N66*EXP(-_dR*_t))) -> 9.117211947e-07 | O67: =IF(_R,O66,IF(_t>=_tF,O67,O67+O66*EXP(-_dR*_t))) -> 0
D68: Overall Cum QALYs = | E68: =SUM(E67:O67) -> 1.674286216
D70: Cost Coefficients (at t): | E70: =0 -> 0 | F70: =0 -> 0 | G70: =0 -> 0 | H70: =0 -> 0 | I70: =0 -> 0 | J70: =0 -> 0 | K70: =0 -> 0 | L70: =0 -> 0 | M70: =0 -> 0 | N70: =0 -> 0
D71: (at t+dt): | E71: =0 -> 0 | F71: =0 -> 0 | G71: =0 -> 0 | H71: =0 -> 0 | I71: =0 -> 0 | J71: =0 -> 0 | K71: =0 -> 0 | L71: =0 -> 0 | M71: =0 -> 0 | N71: =0 -> 0
C73: Transition Cost Tolls: | D73: Warfarin / Embolism / No Embolism / No Hemorrhage / Alive
D74: Warfarin / No Embolism / Embolism / No Hemorrhage / Alive
D75: Temporarily Discontinue / No Embolism / No Embolism / Hemorrhage / Alive
D76: Warfarin / Embolism / No Embolism / Long Term Morbidity / Alive
D77: Warfarin / No Embolism / Embolism / Long Term Morbidity / Alive
D78: Temporarily Discontinue / No Embolism / No Embolism / Subseq Hemorrhage / Alive
D79: Warfarin / Embolism / Long Term Morbidity / No Hemorrhage / Alive
D80: Warfarin / No Embolism / Subseq Embolism / No Hemorrhage / Alive
D81: Temporarily Discontinue / No Embolism / Long Term Morbidity / Hemorrhage / Alive
D82: Warfarin / Embolism / Long Term Morbidity / Long Term Morbidity / Alive
D83: Warfarin / No Embolism / Subseq Embolism / Long Term Morbidity / Alive
D84: Temporarily Discontinue / No Embolism / Long Term Morbidity / Subseq Hemorrhage / Alive
D85: No Warfarin / No Embolism / No Embolism / Hemorrhage / Alive
D86: No Warfarin / No Embolism / No Embolism / Subseq Hemorrhage / Alive
D87: Warfarin / No Embolism / No Embolism / No Hemorrhage / Alive
D88: Temporarily Discontinue / Embolism / No Embolism / No Hemorrhage / Alive
D89: Temporarily Discontinue / No Embolism / Embolism / No Hemorrhage / Alive
D90: Warfarin / No Embolism / No Embolism / Long Term Morbidity / Alive
D91: Temporarily Discontinue / Embolism / No Embolism / Long Term Morbidity / Alive
D92: Temporarily Discontinue / No Embolism / Embolism / Long Term Morbidity / Alive
D93: Warfarin / No Embolism / Long Term Morbidity / No Hemorrhage / Alive
D94: Temporarily Discontinue / Embolism / Long Term Morbidity / No Hemorrhage / Alive
D95: Temporarily Discontinue / No Embolism / Subseq Embolism / No Hemorrhage / Alive
D96: Warfarin / No Embolism / Long Term Morbidity / Long Term Morbidity / Alive
D97: Temporarily Discontinue / Embolism / Long Term Morbidity / Long Term Morbidity / Alive
D98: Temporarily Discontinue / No Embolism / Subseq Embolism / Long Term Morbidity / Alive
D99: No Warfarin / No Embolism / No Embolism / No Hemorrhage / Alive
D100: Terminal Node
D101: Incremental Cost Tolls:
D102: Incremental Costs:
D103: Incremental Total:
D104: Cum Discounted Costs:
D105: Overall Cum Costs =

Sheet Anticoag_Status
P16: =dWarf -> 1 | Q16: =_CumQ -> 1.674286216
O17: Warfarin | P17: 1 | Q17: 25.50057352
O18: No Warfarin | P18: 0 | Q18: 23.73853579
D19: dWarf = | E19: 1

Sheet Pul_Embolism
E21: rPE_NoW = | F21: 0.05
E22: rPE_W = | F22: 0.01
E23: TollPE = | F23: =1/36 -> 0.02777777778
E24: pDEmb = | F24: 0.38

Sheet Sys_Embolism
F20: rSE_NoW = | G20: 0.04
F21: rSE_W = | G21: 0.0072
F22: pDEmb = | G22: 0.3
F23: pLTMEmb = | G23: 0.23
F24: TollEmb = | G24: =1/24 -> 0.04166666667

Sheet Sys_Hemorrhage
F21: rSH_NoW = | G21: 0
F22: rSH_W = | G22: 0.045
F23: pDHem = | G23: 0.14
F24: pLTMHem = | G24: 0.054
F25: TollHem = | G25: =1/48 -> 0.02083333333

Sheet _Lookup (hidden)
A1: Next Available Dive Index | B1: 34
A2: Begin Table | B2: 5
A3: End Table | B3: 39
A5: Lexicographic Node Index | B5: Dive Index
A6: 1 | B6: 2
A7: 4 | B7: 16
A8: 6 | B8: 4
A9: 9 | B9: 10
A10: 16 | B10: 24
A11: 19 | B11: 12
A12: 21 | B12: 26
A13: 24 | B13: 14
A14: 26 | B14: 3
A15: 29 | B15: 9
A16: 41 | B16: 25
A17: 44 | B17: 13
A18: 51 | B18: 6
A19: 52 | B19: 7
A20: 54 | B20: 8
A21: 55 | B21: 11
A22: 101 | B22: 31
A23: 102 | B23: 5
A24: 104 | B24: 18
A25: 105 | B25: 17
A26: 106 | B26: 33
A27: 109 | B27: 20
A28: 116 | B28: 28
A29: 117 | B29: 27
A30: 119 | B30: 21
A31: 120 | B31: 15
A32: 121 | B32: 30
A33: 124 | B33: 23
A34: 126 | B34: 32
A35: 129 | B35: 19
A36: 141 | B36: 29
A37: 144 | B37: 22
A38: 151 | B38: 1

Sheet Background
P6: Under Warfarin
P7: =Age -> 50 | Q7: =_CumQ -> 1.674286216
P8: 40 | Q8: 29.00090471
P9: 50 | Q9: 25.45057352
P10: 60 | Q10: 19.97294189
P11: 70 | Q11: 13.77231173
D17: Age = | E17: 50
D18: Sex = | E18: Male

Sheet Sheet1
